[Event "Open NK Rapid 2025"]
[Site "Helmond, Netherlands"]
[Date "2025.05.03"]
[Round "6.22"]
[White "Kurt, Sascha"]
[Black "Kools, Thomas"]
[Result "1-0"]
[TimeControl "15+5"]
[WhiteFideId "1082647"]
[BlackFideId "1054759"]
[WhiteElo "1953"]
[BlackElo "2094"]

1. b3 {[%clk 00:15:08]} {[%emt 00:00:02]} d5 {[%clk 00:15:01]} {[%emt
00:00:09]} 2. Nf3 {[%clk 00:15:10]} {[%emt 00:00:02]} e6 {[%clk 00:15:05]}
{[%emt 00:00:03]} 3. Bb2 {[%clk 00:15:14]} Nf6 {[%clk 00:15:08]} {[%emt
00:00:01]} 4. e3 {[%clk 00:15:17]} {[%emt 00:00:02]} Be7 {[%clk 00:15:12]}
{[%emt 00:00:02]} 5. c4 {[%clk 00:15:19]} {[%emt 00:00:03]} O-O {[%clk
00:15:10]} {[%emt 00:00:07]} 6. Be2 {[%clk 00:15:18]} {[%emt 00:00:05]} c6
{[%clk 00:15:10]} {[%emt 00:00:05]} 7. O-O {[%clk 00:15:19]} {[%emt 00:00:05]}
a5 {[%clk 00:15:13]} {[%emt 00:00:02]} 8. d3 {[%clk 00:15:17]} {[%emt
00:00:06]} Nbd7 {[%clk 00:14:47]} {[%emt 00:00:31]} 9. Nbd2 {[%clk 00:15:18]}
{[%emt 00:00:04]} a4 {[%clk 00:14:41]} {[%emt 00:00:13]} 10. Qc2 {[%clk
00:15:07]} {[%emt 00:00:15]} b5 {[%clk 00:14:21]} {[%emt 00:00:24]} 11. Ne5
{[%clk 00:14:53]} {[%emt 00:00:19]} Nxe5 {[%clk 00:13:32]} {[%emt 00:00:54]} 12.
Bxe5 {[%clk 00:14:57]} {[%emt 00:00:02]} Bb7 {[%clk 00:12:31]} {[%emt
00:01:07]} 13. d4 {[%clk 00:13:53]} {[%emt 00:01:08]} axb3 {[%clk 00:10:15]}
{[%emt 00:02:21]} 14. axb3 {[%clk 00:13:55]} {[%emt 00:00:03]} bxc4 {[%clk
00:10:18]} {[%emt 00:00:01]} 15. bxc4 {[%clk 00:13:57]} {[%emt 00:00:04]} dxc4
{[%clk 00:09:01]} {[%emt 00:01:22]} 16. Bf3 {[%clk 00:13:48]} {[%emt 00:00:13]}
Nd7 {[%clk 00:07:56]} {[%emt 00:01:10]} 17. Bg3 {[%clk 00:13:36]} {[%emt
00:00:18]} Nb6 {[%clk 00:07:17]} {[%emt 00:00:43]} 18. Rfb1 {[%clk 00:13:15]}
{[%emt 00:00:26]} Rxa1 {[%clk 00:07:21]} {[%emt 00:00:03]} 19. Rxa1 {[%clk
00:13:19]} {[%emt 00:00:01]} Qd7 {[%clk 00:06:27]} {[%emt 00:00:58]} 20. Rb1
{[%clk 00:13:07]} {[%emt 00:00:17]} Bd8 {[%clk 00:05:46]} {[%emt 00:00:45]} 21.
Ne4 {[%clk 00:08:47]} {[%emt 00:04:25]} Ba8 {[%clk 00:03:46]} {[%emt 00:02:06]}
22. Nc5 {[%clk 00:07:47]} {[%emt 00:01:05]} Qc8 {[%clk 00:03:49]} {[%emt
00:00:01]} 23. h4 {[%clk 00:06:55]} {[%emt 00:00:57]} Bc7 {[%clk 00:03:18]}
{[%emt 00:00:37]} 24. Bxc7 {[%clk 00:06:39]} {[%emt 00:00:21]} Qxc7 {[%emt
00:01:09]} 25. Be2 {[%clk 00:05:36]} e5 {[%clk 00:02:21]} {[%emt 00:01:06]} 26.
Bxc4 {[%clk 00:04:13]} {[%emt 00:01:28]} exd4 {[%clk 00:02:08]} {[%emt
00:00:17]} 27. exd4 {[%clk 00:04:01]} {[%emt 00:00:18]} Nd7 {[%clk 00:01:54]}
{[%emt 00:00:19]} 28. Qf5 {[%clk 00:02:51]} {[%emt 00:01:15]} Nxc5 {[%clk
00:01:32]} {[%emt 00:00:27]} 29. dxc5 {[%clk 00:02:55]} {[%emt 00:00:02]} Bb7
{[%clk 00:01:36]} {[%emt 00:00:01]} 30. h5 {[%clk 00:02:14]} {[%emt 00:00:46]}
Bc8 {[%clk 00:01:25]} {[%emt 00:00:15]} 31. Qe4 {[%clk 00:02:06]} {[%emt
00:00:13]} Bd7 {[%clk 00:00:55]} {[%emt 00:00:35]} 32. h6 {[%clk 00:01:58]}
{[%emt 00:00:13]} Re8 {[%clk 00:00:59]} 33. Qf3 {[%clk 00:01:37]} {[%emt
00:00:26]} Be6 {[%clk 00:01:02]} {[%emt 00:00:03]} 34. Bd3 {[%clk 00:01:33]}
{[%emt 00:00:08]} Bd5 {[%clk 00:00:57]} {[%emt 00:00:10]} 35. Qg4 {[%clk
00:01:30]} {[%emt 00:00:06]} Qe5 {[%clk 00:00:57]} {[%emt 00:00:07]} 36. Rb4
{[%clk 00:00:42]} {[%emt 00:00:54]} g6 {[%clk 00:00:28]} {[%emt 00:00:33]} 37.
Qf4 {[%clk 00:00:27]} {[%emt 00:00:20]} Qxf4 {[%clk 00:00:20]} {[%emt
00:00:12]} 38. Rxf4 {[%clk 00:00:32]} Re5 {[%clk 00:00:24]} {[%emt 00:00:01]}
39. Rb4 {[%clk 00:00:31]} {[%emt 00:00:06]} Re8 {[%clk 00:00:22]} {[%emt
00:00:07]} 40. f4 {[%clk 00:00:29]} {[%emt 00:00:07]} f5 {[%clk 00:00:19]}
{[%emt 00:00:09]} 41. Kf2 {[%clk 00:00:29]} {[%emt 00:00:04]} Kf7 {[%clk
00:00:23]} {[%emt 00:00:01]} 42. Rb7+ {[%clk 00:00:33]} Re7 {[%clk 00:00:27]}
43. Rb8 {[%clk 00:00:37]} {[%emt 00:00:01]} Kf6 {[%clk 00:00:28]} {[%emt
00:00:03]} 44. Rc8 {[%clk 00:00:36]} {[%emt 00:00:07]} g5 {[%clk 00:00:24]}
{[%emt 00:00:09]} 45. Rf8+ {[%clk 00:00:35]} {[%emt 00:00:06]} Rf7 {[%clk
00:00:28]} 46. Rxf7+ {[%clk 00:00:37]} {[%emt 00:00:02]} Bxf7 {[%clk 00:00:32]}
{[%emt 00:00:02]} 47. Ke3 {[%clk 00:00:39]} {[%emt 00:00:03]} Kg6 {[%clk
00:00:13]} {[%emt 00:00:24]} 48. Kd4 {[%clk 00:00:35]} {[%emt 00:00:09]} gxf4
{[%clk 00:00:15]} {[%emt 00:00:03]} 49. Ke5 {[%clk 00:00:37]} {[%emt 00:00:02]}
Kxh6 {[%clk 00:00:19]} 50. Kxf4 {[%clk 00:00:37]} {[%emt 00:00:06]} Bd5 {[%clk
00:00:19]} {[%emt 00:00:04]} 51. g3 {[%clk 00:00:42]} Kg7 {[%clk 00:00:23]}
{[%emt 00:00:01]} 52. Bxf5 {[%clk 00:00:43]} {[%emt 00:00:03]} h6 {[%clk
00:00:17]} {[%emt 00:00:11]} 53. Ke5 {[%clk 00:00:47]} Kf7 {[%clk 00:00:21]}
{[%emt 00:00:02]} 54. Kd6 {[%clk 00:00:51]} {[%emt 00:00:01]} Kf6 {[%clk
00:00:21]} {[%emt 00:00:05]} 55. Bd7 {[%clk 00:00:55]} {[%emt 00:00:01]} Kg5
{[%clk 00:00:21]} {[%emt 00:00:05]} 56. Bxc6 {[%clk 00:00:58]} {[%emt
00:00:02]} Bc4 {[%clk 00:00:21]} {[%emt 00:00:04]} 57. Bd7 {[%clk 00:01:01]}
{[%emt 00:00:03]} Kf6 {[%clk 00:00:10]} {[%emt 00:00:16]} 58. c6 {[%clk
00:01:04]} {[%emt 00:00:01]} Ba6 {[%clk 00:00:14]} {[%emt 00:00:02]} 59. c7
{[%clk 00:01:07]} {[%emt 00:00:02]} h5 {[%clk 00:00:13]} {[%emt 00:00:05]} 60.
Bh3 {[%clk 00:01:07]} {[%emt 00:00:05]} Kf7 {[%clk 00:00:10]} {[%emt 00:00:09]}
61. Kd7 {[%clk 00:01:11]} {[%emt 00:00:02]} 1-0

[Event "Open NK Rapid 2025"]
[Site "Helmond, Netherlands"]
[Date "2025.05.03"]
[Round "6.23"]
[White "Frederiks, Jesse"]
[Black "Uddin, Ahnaf Tajwar"]
[Result "0-1"]
[TimeControl "15+5"]
[WhiteFideId "1095790"]
[BlackFideId "1050842"]
[WhiteElo "1937"]
[BlackElo "2081"]

1. d4 {[%clk 00:15:09]} b6 {[%clk 00:15:03]} {[%emt 00:00:07]} 2. c4 {[%clk
00:15:05]} {[%emt 00:00:09]} Bb7 {[%clk 00:15:07]} {[%emt 00:00:01]} 3. Nc3
{[%clk 00:15:06]} {[%emt 00:00:03]} f5 {[%clk 00:15:11]} {[%emt 00:00:02]} 4.
Bg5 {[%clk 00:14:05]} {[%emt 00:01:06]} Nf6 {[%clk 00:15:11]} {[%emt 00:00:05]}
5. Bxf6 {[%clk 00:13:26]} {[%emt 00:00:45]} exf6 {[%clk 00:15:14]} {[%emt
00:00:02]} 6. Qc2 {[%clk 00:13:28]} {[%emt 00:00:02]} g6 {[%clk 00:14:27]}
{[%emt 00:00:52]} 7. O-O-O {[%clk 00:13:05]} {[%emt 00:00:27]} Bb4 {[%clk
00:13:00]} {[%emt 00:01:33]} 8. d5 {[%clk 00:12:17]} {[%emt 00:00:53]} Bxc3
{[%clk 00:12:46]} {[%emt 00:00:19]} 9. Qxc3 {[%clk 00:12:19]} {[%emt 00:00:02]}
Qe7 {[%clk 00:12:49]} {[%emt 00:00:03]} 10. e3 {[%clk 00:11:25]} {[%emt
00:00:59]} Na6 {[%clk 00:12:46]} {[%emt 00:00:08]} 11. Bd3 {[%clk 00:11:09]}
{[%emt 00:00:20]} Nc5 {[%clk 00:12:25]} {[%emt 00:00:28]} 12. Ne2 {[%clk
00:10:52]} {[%emt 00:00:21]} Qe5 {[%clk 00:11:45]} {[%emt 00:00:45]} 13. Nd4
{[%clk 00:10:15]} {[%emt 00:00:42]} a5 {[%clk 00:11:35]} {[%emt 00:00:15]} 14.
Rhe1 {[%clk 00:09:11]} {[%emt 00:01:09]} O-O {[%clk 00:11:20]} {[%emt
00:00:19]} 15. f4 {[%clk 00:08:34]} {[%emt 00:00:43]} Qe7 {[%clk 00:11:14]}
{[%emt 00:00:12]} 16. h3 {[%clk 00:08:26]} {[%emt 00:00:12]} Ne4 {[%clk
00:10:21]} {[%emt 00:00:58]} 17. Bxe4 {[%clk 00:08:17]} {[%emt 00:00:15]} Qxe4
{[%clk 00:10:15]} {[%emt 00:00:11]} 18. g4 {[%clk 00:07:55]} {[%emt 00:00:26]}
fxg4 {[%clk 00:10:15]} {[%emt 00:00:05]} 19. hxg4 {[%clk 00:07:59]} {[%emt
00:00:02]} c6 {[%clk 00:09:28]} {[%emt 00:00:52]} 20. dxc6 {[%clk 00:07:08]}
{[%emt 00:00:55]} dxc6 {[%clk 00:09:27]} {[%emt 00:00:06]} 21. Nc2 {[%clk
00:07:02]} {[%emt 00:00:11]} c5 {[%clk 00:09:03]} {[%emt 00:00:30]} 22. Rd7
{[%clk 00:06:47]} {[%emt 00:00:20]} Bc8 {[%clk 00:07:53]} {[%emt 00:01:14]} 23.
Rd6 {[%clk 00:06:34]} {[%emt 00:00:17]} Bxg4 {[%clk 00:07:34]} {[%emt
00:00:25]} 24. Rxf6 {[%clk 00:06:10]} {[%emt 00:00:29]} Rxf6 {[%clk 00:07:26]}
{[%emt 00:00:13]} 25. Qxf6 {[%clk 00:06:13]} {[%emt 00:00:02]} Qxc4 {[%clk
00:07:10]} {[%emt 00:00:21]} 26. Qxb6 {[%clk 00:05:26]} {[%emt 00:00:53]} Qxa2
{[%clk 00:06:30]} {[%emt 00:00:44]} 27. e4 {[%clk 00:04:24]} {[%emt 00:01:07]}
Qe6 {[%clk 00:05:18]} {[%emt 00:01:14]} 28. Qxe6+ {[%clk 00:04:00]} {[%emt
00:00:32]} Bxe6 {[%clk 00:05:22]} {[%emt 00:00:02]} 29. Rd1 {[%clk 00:03:48]}
{[%emt 00:00:16]} Rf8 {[%clk 00:04:48]} {[%emt 00:00:39]} 30. Rf1 {[%clk
00:03:02]} {[%emt 00:00:50]} Bc4 {[%clk 00:04:47]} {[%emt 00:00:07]} 31. Rf2
{[%clk 00:02:59]} {[%emt 00:00:07]} Bd3 {[%clk 00:04:51]} {[%emt 00:00:02]} 32.
e5 {[%clk 00:02:54]} {[%emt 00:00:11]} g5 {[%clk 00:04:54]} {[%emt 00:00:02]}
33. Rg2 {[%clk 00:02:30]} {[%emt 00:00:29]} Rxf4 {[%clk 00:04:57]} {[%emt
00:00:01]} 34. Rxg5+ {[%clk 00:02:33]} {[%emt 00:00:02]} Bg6 {[%clk 00:04:42]}
{[%emt 00:00:20]} 35. Ne3 {[%clk 00:02:17]} {[%emt 00:00:21]} Re4 {[%clk
00:04:11]} {[%emt 00:00:37]} 36. Nd5 {[%clk 00:01:48]} {[%emt 00:00:33]} Rc4+
{[%clk 00:04:11]} {[%emt 00:00:05]} 37. Nc3 {[%clk 00:01:40]} {[%emt 00:00:13]}
a4 {[%clk 00:03:57]} {[%emt 00:00:20]} 38. Kd2 {[%clk 00:01:09]} {[%emt
00:00:35]} Kf7 {[%clk 00:04:00]} {[%emt 00:00:02]} 39. Rg3 {[%clk 00:01:06]}
{[%emt 00:00:07]} Ke6 {[%clk 00:03:43]} {[%emt 00:00:23]} 40. Re3 {[%clk
00:01:04]} {[%emt 00:00:06]} Rb4 {[%clk 00:03:40]} {[%emt 00:00:09]} 41. Kc1
{[%clk 00:00:50]} {[%emt 00:00:18]} Rb3 {[%clk 00:03:10]} {[%emt 00:00:36]} 42.
Re2 {[%clk 00:00:32]} {[%emt 00:00:22]} a3 {[%clk 00:03:04]} {[%emt 00:00:12]}
43. Na4 {[%clk 00:00:14]} {[%emt 00:00:23]} axb2+ {[%clk 00:02:51]} {[%emt
00:00:18]} 44. Nxb2 {[%clk 00:00:13]} {[%emt 00:00:06]} Rc3+ {[%clk 00:02:48]}
{[%emt 00:00:08]} 45. Kd2 {[%clk 00:00:11]} {[%emt 00:00:08]} Rc2+ {[%clk
00:02:49]} {[%emt 00:00:03]} 46. Ke3 {[%clk 00:00:12]} {[%emt 00:00:04]} Rxe2+
{[%clk 00:02:52]} {[%emt 00:00:02]} 47. Kxe2 {[%clk 00:00:16]} {[%emt
00:00:01]} Kxe5 {[%clk 00:02:55]} {[%emt 00:00:03]} 48. Ke3 {[%clk 00:00:19]}
{[%emt 00:00:01]} Kd5 {[%clk 00:02:57]} {[%emt 00:00:03]} 49. Nd1 {[%clk
00:00:09]} {[%emt 00:00:15]} Kc4 {[%clk 00:03:00]} {[%emt 00:00:02]} 50. Kd2
{[%clk 00:00:11]} {[%emt 00:00:03]} Kd4 {[%clk 00:03:02]} {[%emt 00:00:03]} 51.
Nf2 {[%clk 00:00:12]} {[%emt 00:00:04]} c4 {[%clk 00:03:04]} {[%emt 00:00:03]}
52. Nd1 {[%clk 00:00:10]} {[%emt 00:00:07]} h5 {[%clk 00:02:48]} {[%emt
00:00:21]} 53. Nc3 {[%clk 00:00:11]} {[%emt 00:00:04]} Bd3 {[%clk 00:02:41]}
{[%emt 00:00:12]} 54. Nd1 {[%clk 00:00:08]} {[%emt 00:00:09]} h4 {[%clk
00:02:34]} {[%emt 00:00:11]} 55. Nf2 {[%clk 00:00:10]} {[%emt 00:00:03]} Bf5
{[%clk 00:02:32]} {[%emt 00:00:07]} 56. Nd1 {[%clk 00:00:08]} {[%emt 00:00:08]}
h3 {[%clk 00:02:28]} {[%emt 00:00:08]} 57. Ne3 {[%clk 00:00:11]} {[%emt
00:00:02]} Be4 {[%clk 00:02:23]} {[%emt 00:00:10]} 58. Nf1 {[%clk 00:00:13]}
{[%emt 00:00:03]} c3+ {[%clk 00:01:52]} {[%emt 00:00:36]} 59. Kc1 {[%clk
00:00:13]} {[%emt 00:00:03]} Bg2 {[%clk 00:01:22]} {[%emt 00:00:37]} 60. Nh2
{[%clk 00:00:16]} {[%emt 00:00:02]} Be4 {[%clk 00:01:10]} {[%emt 00:00:17]} 61.
Ng4 {[%clk 00:00:17]} {[%emt 00:00:05]} Bf5 {[%clk 00:01:06]} {[%emt 00:00:08]}
62. Nh2 {[%clk 00:00:11]} {[%emt 00:00:11]} Ke3 {[%clk 00:01:07]} {[%emt
00:00:04]} 63. Nf1+ {[%clk 00:00:08]} {[%emt 00:00:08]} Kf2 {[%clk 00:01:10]}
{[%emt 00:00:02]} 64. Nh2 {[%clk 00:00:12]} {[%emt 00:00:01]} Kg2 {[%clk
00:01:12]} {[%emt 00:00:03]} 0-1

[Event "Open NK Rapid 2025"]
[Site "Helmond, Netherlands"]
[Date "2025.05.03"]
[Round "6.24"]
[White "Taams, Lisanne"]
[Black "Moskalets, Sofiia"]
[Result "0-1"]
[TimeControl "15+5"]
[WhiteFideId "1055852"]
[BlackFideId "34144293"]
[WhiteElo "2078"]
[BlackElo "1938"]

1. Nf3 {[%clk 00:15:08]} {[%emt 00:00:02]} Nf6 {[%clk 00:15:09]} {[%emt
00:00:02]} 2. c4 {[%clk 00:15:11]} g6 {[%clk 00:15:12]} {[%emt 00:00:02]} 3.
Nc3 {[%clk 00:15:11]} {[%emt 00:00:05]} Bg7 {[%clk 00:15:16]} {[%emt 00:00:02]}
4. e4 {[%clk 00:15:07]} {[%emt 00:00:09]} d6 {[%clk 00:15:18]} {[%emt
00:00:02]} 5. Be2 {[%clk 00:15:08]} {[%emt 00:00:04]} O-O {[%clk 00:15:21]}
{[%emt 00:00:02]} 6. O-O {[%clk 00:15:05]} {[%emt 00:00:09]} e5 {[%clk
00:15:24]} {[%emt 00:00:01]} 7. d3 {[%clk 00:15:06]} {[%emt 00:00:04]} c6
{[%clk 00:15:07]} {[%emt 00:00:21]} 8. b4 {[%clk 00:13:45]} {[%emt 00:01:27]}
Nh5 {[%clk 00:14:29]} {[%emt 00:00:43]} 9. Bg5 {[%clk 00:13:21]} {[%emt
00:00:29]} Qe8 {[%clk 00:13:33]} {[%emt 00:01:01]} 10. b5 {[%clk 00:11:38]}
{[%emt 00:01:49]} Nf4 {[%clk 00:13:14]} {[%emt 00:00:23]} 11. Rb1 {[%clk
00:11:01]} {[%emt 00:00:42]} Nd7 {[%clk 00:11:48]} {[%emt 00:01:31]} 12. Bxf4
{[%clk 00:10:20]} {[%emt 00:00:46]} exf4 {[%clk 00:11:51]} {[%emt 00:00:02]} 13.
d4 {[%clk 00:10:22]} {[%emt 00:00:03]} c5 {[%clk 00:09:30]} {[%emt 00:02:27]}
14. Nd5 {[%clk 00:09:49]} {[%emt 00:00:37]} Qd8 {[%clk 00:09:34]} {[%emt
00:00:02]} 15. Nxf4 {[%clk 00:08:28]} {[%emt 00:01:25]} cxd4 {[%clk 00:09:32]}
{[%emt 00:00:07]} 16. Nd5 {[%clk 00:08:30]} {[%emt 00:00:03]} Nc5 {[%clk
00:09:20]} {[%emt 00:00:17]} 17. Nxd4 {[%clk 00:07:40]} {[%emt 00:00:56]} Nxe4
{[%clk 00:08:57]} {[%emt 00:00:27]} 18. Bf3 {[%clk 00:07:38]} {[%emt 00:00:07]}
Nc5 {[%clk 00:08:08]} {[%emt 00:00:55]} 19. Re1 {[%clk 00:07:22]} {[%emt
00:00:20]} Qh4 {[%clk 00:07:01]} {[%emt 00:01:12]} 20. Ne2 {[%clk 00:07:16]}
{[%emt 00:00:11]} Bf5 {[%clk 00:06:58]} {[%emt 00:00:08]} 21. Ng3 {[%clk
00:06:27]} {[%emt 00:00:54]} Bxb1 {[%clk 00:06:48]} {[%emt 00:00:15]} 22. Qxb1
{[%clk 00:06:19]} {[%emt 00:00:13]} Qxc4 {[%clk 00:06:22]} {[%emt 00:00:31]} 23.
Re7 {[%clk 00:04:59]} {[%emt 00:01:25]} Rae8 {[%clk 00:05:40]} {[%emt
00:00:47]} 24. Rc7 {[%clk 00:04:58]} {[%emt 00:00:06]} Qd4 {[%clk 00:04:40]}
{[%emt 00:01:06]} 25. Ne3 {[%clk 00:03:30]} {[%emt 00:01:33]} Qd2 {[%clk
00:03:11]} {[%emt 00:01:33]} 26. Bxb7 {[%clk 00:02:40]} {[%emt 00:00:56]} Qa5
{[%clk 00:02:32]} {[%emt 00:00:44]} 27. b6 {[%clk 00:02:16]} {[%emt 00:00:28]}
Qxb6 {[%clk 00:02:19]} {[%emt 00:00:18]} 28. Qxb6 {[%clk 00:02:10]} {[%emt
00:00:12]} axb6 {[%clk 00:02:23]} {[%emt 00:00:01]} 29. Bd5 {[%clk 00:02:10]}
{[%emt 00:00:04]} Bd4 {[%clk 00:02:10]} {[%emt 00:00:18]} 30. Ngf1 {[%clk
00:01:40]} {[%emt 00:00:35]} Ne6 {[%clk 00:02:04]} {[%emt 00:00:11]} 31. Rc4
{[%clk 00:01:27]} {[%emt 00:00:18]} Bc5 {[%clk 00:02:03]} {[%emt 00:00:06]} 32.
Ng4 {[%clk 00:01:26]} {[%emt 00:00:05]} Kg7 {[%clk 00:02:00]} {[%emt 00:00:09]}
33. h4 {[%clk 00:01:27]} {[%emt 00:00:04]} h5 {[%clk 00:02:04]} {[%emt
00:00:01]} 34. Ngh2 {[%clk 00:01:24]} {[%emt 00:00:08]} b5 {[%clk 00:01:53]}
{[%emt 00:00:16]} 35. Rc2 {[%clk 00:01:08]} {[%emt 00:00:22]} b4 {[%clk
00:01:52]} {[%emt 00:00:05]} 36. Nf3 {[%clk 00:01:02]} {[%emt 00:00:11]} Nd4
{[%clk 00:01:54]} {[%emt 00:00:03]} 37. Nxd4 {[%clk 00:01:01]} {[%emt
00:00:06]} Bxd4 {[%clk 00:01:58]} 38. Ng3 {[%clk 00:00:47]} {[%emt 00:00:19]}
Re5 {[%clk 00:01:43]} {[%emt 00:00:21]} 39. Bb3 {[%clk 00:00:48]} {[%emt
00:00:04]} Bc5 {[%clk 00:00:00]} {[%emt 00:01:26]} 40. Kh2 {[%clk 00:00:35]}
{[%emt 00:00:36]} Rfe8 {[%clk 00:02:15]} {[%emt 00:00:06]} 41. f4 {[%clk
00:00:37]} {[%emt 00:00:03]} Re1 {[%clk 00:02:16]} {[%emt 00:00:04]} 42. f5
{[%clk 00:00:38]} {[%emt 00:00:04]} R8e7 {[%clk 00:01:45]} {[%emt 00:00:36]} 43.
Rd2 {[%clk 00:00:28]} {[%emt 00:00:15]} R7e3 {[%clk 00:01:08]} {[%emt
00:00:42]} 44. Rd5 {[%clk 00:00:20]} {[%emt 00:00:14]} Rc3 {[%clk 00:00:47]}
{[%emt 00:00:26]} 45. Rd2 {[%clk 00:00:16]} {[%emt 00:00:09]} Be3 {[%clk
00:00:44]} {[%emt 00:00:07]} 46. Re2 {[%clk 00:00:07]} {[%emt 00:00:15]} Rxe2
{[%clk 00:00:29]} {[%emt 00:00:20]} 47. Nxe2 {[%clk 00:00:11]} {[%emt
00:00:01]} Rd3 {[%clk 00:00:32]} {[%emt 00:00:01]} 48. fxg6 {[%clk 00:00:10]}
{[%emt 00:00:06]} fxg6 {[%clk 00:00:36]} {[%emt 00:00:01]} 49. Kh3 {[%clk
00:00:11]} {[%emt 00:00:04]} Bf4+ {[%clk 00:00:37]} {[%emt 00:00:04]} 50. g3
{[%clk 00:00:16]} {[%emt 00:00:01]} Be5 {[%clk 00:00:41]} {[%emt 00:00:01]} 51.
Kg2 {[%clk 00:00:18]} {[%emt 00:00:02]} Kf6 {[%clk 00:00:36]} {[%emt 00:00:10]}
52. Bc4 {[%clk 00:00:21]} {[%emt 00:00:03]} Rd2 {[%clk 00:00:31]} {[%emt
00:00:09]} 53. Kf3 {[%clk 00:00:23]} {[%emt 00:00:02]} d5 {[%clk 00:00:30]}
{[%emt 00:00:07]} 54. Bb3 {[%clk 00:00:27]} {[%emt 00:00:01]} d4 {[%clk
00:00:30]} {[%emt 00:00:05]} 55. Bc4 {[%clk 00:00:18]} {[%emt 00:00:14]} Rc2
{[%clk 00:00:21]} {[%emt 00:00:14]} 56. Bd3 {[%clk 00:00:13]} {[%emt 00:00:10]}
Rxa2 {[%clk 00:00:24]} {[%emt 00:00:02]} 57. g4 {[%clk 00:00:17]} {[%emt
00:00:01]} hxg4+ {[%clk 00:00:26]} {[%emt 00:00:03]} 58. Ke4 {[%clk 00:00:15]}
{[%emt 00:00:07]} g3 {[%clk 00:00:25]} {[%emt 00:00:06]} 59. Ng1 {[%clk
00:00:15]} {[%emt 00:00:05]} g2 {[%clk 00:00:26]} {[%emt 00:00:04]} 60. Nf3
{[%clk 00:00:18]} {[%emt 00:00:02]} Bh2 {[%clk 00:00:26]} {[%emt 00:00:05]} 61.
Nxh2 {[%clk 00:00:18]} {[%emt 00:00:05]} g1=Q {[%clk 00:00:27]} {[%emt
00:00:04]} 62. Nf3 {[%clk 00:00:21]} {[%emt 00:00:01]} Qe3+ {[%clk 00:00:30]}
{[%emt 00:00:03]} 63. Kd5 {[%clk 00:00:25]} {[%emt 00:00:02]} Qxf3+ {[%clk
00:00:33]} {[%emt 00:00:02]} 64. Be4 {[%clk 00:00:28]} {[%emt 00:00:02]} Qb3+
{[%clk 00:00:35]} {[%emt 00:00:02]} 65. Kxd4 {[%clk 00:00:30]} {[%emt
00:00:03]} Rd2+ {[%clk 00:00:38]} {[%emt 00:00:02]} 66. Kc5 {[%clk 00:00:31]}
{[%emt 00:00:04]} Qe3+ {[%clk 00:00:42]} {[%emt 00:00:01]} 67. Kb5 {[%clk
00:00:35]} {[%emt 00:00:02]} Qxe4 {[%clk 00:00:45]} {[%emt 00:00:01]} 68. h5
{[%clk 00:00:38]} {[%emt 00:00:02]} Rd5+ {[%clk 00:00:49]} {[%emt 00:00:01]} 69.
Ka4 {[%clk 00:00:41]} {[%emt 00:00:03]} b3+ {[%clk 00:00:52]} {[%emt 00:00:01]}
70. Ka3 {[%clk 00:00:45]} {[%emt 00:00:01]} b2 {[%clk 00:00:52]} {[%emt
00:00:05]} 71. hxg6 {[%clk 00:00:46]} {[%emt 00:00:03]} b1=R {[%emt 00:00:08]}
72. g7 {[%clk 00:00:49]} {[%emt 00:00:01]} Ra5# {[%clk 00:00:52]} {[%emt
00:00:05]} 0-1